bitfinex/quotes_ETHUSD_20240713
["timestamp","ask_amount","ask_price","bid_price","bid_amount"]
[1720835062048,2.00421836,3141.0,3140.8,0.23144402]
[1720835062379,4.72135476,3141.3,3140.8,0.23144402]
[1720835062380,2.00421836,3140.9,3140.8,0.23144402]
[1720835063278,2.00439499,3140.9,3140.8,0.23144402]
[1720835063646,2.0045339,3140.9,3140.8,0.23144402]
[1720835064179,2.0045339,3141.0,3140.8,0.23144402]
[1720835066102,2.00443775,3141.0,3140.8,0.23144402]
[1720835066559,2.00445519,3141.0,3140.8,0.23144402]
[1720835069972,2.00423819,3141.0,3140.8,0.23144402]
[1720835072106,2.00423819,3141.1,3140.8,0.23144402]
[1720835072313,2.7006308,3141.1,3140.8,0.23144402]
[1720835072457,2.00423819,3141.0,3140.8,0.23144402]
[1720835072657,2.7006308,3141.1,3140.8,0.23144402]
[1720835073282,0.69639261,3141.1,3140.8,0.23144402]
[1720835073612,2.00379367,3141.1,3140.8,0.23144402]
[1720835073818,0.23831,3141.2,3140.8,0.23144402]
[1720835073964,2.0037276,3141.1,3140.8,0.23144402]
[1720835074305,2.0037276,3141.0,3140.8,0.23144402]
[1720835074523,2.0037276,3141.0,3140.6,2.22882]
[1720835074670,1.66971439,3140.7,3140.6,2.22882]
[1720835074864,1.66971028,3140.7,3140.6,2.22882]
[1720835076463,2.00365233,3140.9,3140.6,2.22882]
[1720835076670,2.00365233,3140.9,3140.5,0.811]
[1720835076671,1.66963438,3140.7,3140.4,2.22898]
[1720835076973,1.66961024,3140.6,3140.4,2.22898]
[1720835077191,1.66961024,3140.5,3140.3,0.811]
[1720835077524,1.66961024,3140.5,3140.2,2.22912]
[1720835077721,1.33532782,3140.3,3140.2,2.22912]
[1720835078283,1.66961024,3140.4,3140.2,2.22912]
[1720835078825,1.33533601,3140.3,3140.2,2.22912]
[1720835079315,1.33533601,3140.3,3140.2,2.46097526]
[1720835079520,1.33533601,3140.3,3140.2,0.23185526]
[1720835079723,1.66961024,3140.4,3140.2,0.23185526]
[1720835080081,1.66921214,3140.4,3140.2,0.23185526]
[1720835080992,1.33545914,3140.3,3140.2,0.23185526]
[1720835081292,1.33545914,3140.3,3140.2,1.04285526]
[1720835083879,2.51156523,3140.9,3140.2,1.04285526]
[1720835084127,1.33565828,3140.3,3140.2,1.04285526]
[1720835084418,1.33565828,3140.3,3140.2,3.27200526]
[1720835084578,1.33565828,3140.4,3140.3,2.22908]
[1720835084934,1.66957285,3140.4,3140.3,2.46085334]
[1720835086483,1.66957285,3140.5,3140.3,2.46085334]
[1720835086682,2.3112,3140.9,3140.3,2.46085334]
[1720835086683,1.67019624,3140.4,3140.3,2.46085334]
[1720835086930,1.6701954,3140.4,3140.3,2.46085334]
[1720835088524,2.00423448,3140.6,3140.3,2.46085334]
[1720835089026,1.67050332,3140.4,3140.3,2.46085334]
[1720835089322,2.00423448,3140.6,3140.3,0.23177334]
[1720835089626,2.00423448,3140.4,3140.0,3.04025]
[1720835089837,1.6705385,3140.1,3140.0,3.04025]
[1720835090325,2.00477799,3140.3,3140.0,3.04025]
[1720835091020,2.3283,3140.5,3140.0,3.04025]
[1720835091021,1.67065033,3140.1,3140.0,3.04025]
[1720835092648,2.3283,3140.5,3140.0,5.2695]
[1720835092649,2.00477799,3140.3,3140.0,5.2695]
[1720835092845,2.00477799,3140.3,3140.0,3.04025]
[1720835093750,2.00537901,3140.3,3140.0,5.26951]
[1720835094117,2.00537901,3140.3,3140.1,0.22442015]
[1720835094305,2.00538018,3140.3,3140.1,0.22442015]
[1720835096728,2.3283,3140.5,3140.1,0.22442015]
[1720835096917,2.00617169,3140.3,3140.1,0.22442015]
[1720835097120,2.00616903,3140.3,3140.1,0.22442015]
[1720835099330,2.00616903,3140.3,3139.9,0.811]
[1720835099544,2.00616903,3140.2,3140.0,0.22452715]
[1720835100134,2.00616903,3140.3,3140.0,0.22452715]
[1720835100382,2.00616903,3140.2,3140.0,0.22452715]
[1720835100530,2.00596891,3140.2,3140.0,0.22452715]
[1720835102153,2.00596891,3140.3,3140.0,0.22452715]
[1720835102841,2.00596891,3140.1,3140.0,0.22452715]
[1720835103050,2.00561457,3140.1,3140.0,0.22452715]
[1720835103786,2.00537077,3140.1,3140.0,0.22452715]
[1720835104000,2.4293,3140.1,3139.7,3.04044]
[1720835104289,2.4293,3140.1,3139.5,2.22965]
[1720835104290,2.00532582,3140.0,3139.5,2.22965]
[1720835104605,1.67079164,3139.6,3139.3,2.3907]
[1720835104751,2.67223,3140.1,3139.4,2.22972]
[1720835104752,1.67070068,3139.5,3139.4,2.22972]
[1720835105261,1.67070068,3139.6,3139.5,2.22965]
[1720835105463,1.67070068,3139.6,3139.5,3.04065]
[1720835105901,1.67070068,3139.7,3139.5,3.04065]
[1720835106389,1.67061153,3139.7,3139.5,3.04065]
[1720835106596,1.33631203,3139.6,3139.5,3.04065]
[1720835106806,1.67061153,3139.7,3139.5,3.04065]
[1720835106807,1.33631203,3139.7,3139.5,6.197463]
[1720835106980,1.33631203,3139.7,3139.6,2.22958]
[1720835107298,1.33631203,3139.7,3139.6,4.45916]
[1720835107597,1.33631203,3139.8,3139.7,2.22951]
[1720835107808,1.67061153,3139.9,3139.8,2.22944]
[1720835108870,2.00473383,3140.1,3139.8,2.22944]
[1720835109257,2.00473383,3140.1,3139.9,0.22464252]
[1720835109459,2.00459851,3140.1,3139.9,0.22464252]
[1720835109658,2.00459851,3140.1,3139.6,3.04058]
[1720835109883,4.76799827,3140.3,3140.0,0.22456267]
[1720835110059,0.59868139,3140.2,3139.6,3.04058]
[1720835110387,1.67037543,3139.7,3139.6,3.04058]
[1720835111709,1.67037543,3139.7,3139.6,0.811]
[1720835112169,1.67037543,3139.7,3139.5,2.22965]
[1720835112355,1.33610441,3139.6,3139.5,2.22965]
[1720835112762,3.02798139,3140.2,3139.5,2.22965]
[1720835112990,1.33608042,3139.7,3139.6,0.811]
[1720835113456,1.33612569,3139.7,3139.6,3.04058]
[1720835116092,2.4293,3140.2,3139.6,3.04058]
[1720835116302,1.67016894,3139.7,3139.4,5.27037]
[1720835116509,1.33615074,3139.5,3139.4,5.27037]
[1720835117004,1.67016894,3139.6,3139.5,2.22965]
[1720835117358,4.43350273,3139.8,3139.5,2.22965]
[1720835119527,4.43344309,3139.8,3139.5,2.22965]
[1720835120528,4.43344309,3139.8,3139.3,2.22973]
[1720835120730,1.67014652,3139.4,3139.3,2.22973]
[1720835121291,1.67014652,3139.5,3139.3,2.22973]
[1720835122914,1.67016423,3139.5,3139.3,2.22973]
[1720835123288,1.67015547,3139.5,3139.3,2.22973]
[1720835124246,1.67015547,3139.5,3139.4,0.22511494]
[1720835125702,1.66991195,3139.5,3139.4,0.22511494]
[1720835126155,1.66994418,3139.5,3139.4,1.03611494]
[1720835126651,1.66994418,3139.6,3139.4,1.03611494]
[1720835127437,1.33602734,3139.5,3139.4,1.03611494]
[1720835128016,1.33602734,3139.5,3139.4,1.83532443]
[1720835129053,1.33602734,3139.5,3139.4,4.06504443]
[1720835131840,1.33602734,3139.5,3139.4,6.29476443]
[1720835132042,1.33602734,3139.6,3139.5,4.4593]
[1720835132256,1.33602734,3139.7,3139.5,3.0504991]
[1720835132565,1.33602734,3139.9,3139.8,2.22944]
[1720835132764,9.8617,3140.5,3139.8,3.26524907]
[1720835132931,1.33718363,3139.9,3139.8,3.26524907]
[1720835133332,1.67149623,3140.0,3139.8,3.26524907]
[1720835134001,1.67149623,3139.9,3139.8,3.26524907]
[1720835134786,1.67149623,3139.9,3139.8,5.49468907]
[1720835135847,2.00649549,3140.2,3140.0,2.22929]
[1720835136057,9.8617,3140.5,3140.0,2.22929]
[1720835136263,2.0065011,3140.2,3140.1,0.22456326]
[1720835138670,2.0065011,3140.2,3139.9,2.22935]
[1720835138873,2.0065011,3140.2,3140.1,0.22456326]
[1720835139073,2.0065011,3140.2,3140.0,0.22464519]
[1720835139267,2.0065011,3140.2,3140.1,0.22456326]
[1720835139472,0.43474191,3140.2,3140.1,0.22456326]
[1720835139673,2.44142473,3140.2,3139.9,2.22935]
[1720835139885,2.44142473,3140.2,3140.1,0.22456326]
[1720835140103,2.44142473,3140.2,3140.0,0.22464519]
[1720835140406,0.43474191,3140.2,3140.1,0.22452776]
[1720835140613,0.43474191,3140.2,3139.9,2.22935]
[1720835140812,2.00644584,3140.1,3140.0,0.22460969]
[1720835140974,2.00644584,3140.2,3140.0,0.22460969]
[1720835142788,2.4317,3140.5,3140.0,0.22460969]
[1720835142986,2.00623842,3140.2,3140.0,0.22460969]
[1720835143382,2.00624679,3140.2,3140.0,0.22460969]
[1720835144229,2.00631048,3140.2,3140.0,0.22460969]
[1720835144598,4.77239556,3140.5,3140.0,0.22460969]
[1720835144599,2.00631048,3140.1,3140.0,0.22460969]
[1720835146034,2.00638948,3140.1,3140.0,0.22460969]
[1720835146190,2.81802729,3140.4,3140.0,0.22460969]
[1720835146191,0.47723956,3140.4,3140.0,0.22460969]
[1720835146396,2.0063942,3140.1,3140.0,0.22460969]
[1720835148841,2.0063942,3140.1,3139.7,4.45896]
[1720835149015,2.0063942,3140.0,3139.7,2.22946]
[1720835149436,1.67204766,3139.8,3139.7,2.22946]
[1720835149634,2.2889,3140.1,3139.7,2.22946]
[1720835149841,1.67204333,3139.8,3139.7,2.22946]
[1720835150004,2.006452,3140.0,3139.7,2.22946]
[1720835150343,1.67186243,3139.8,3139.7,2.22946]
[1720835150525,2.006452,3140.0,3139.6,0.811]
[1720835150733,2.006452,3139.9,3139.6,0.811]
[1720835150930,2.006452,3139.9,3139.5,2.22958]
[1720835151139,1.67171515,3139.6,3139.5,2.22958]
[1720835151450,2.006452,3139.8,3139.5,2.22958]
[1720835152045,1.6716569,3139.6,3139.5,2.22958]
[1720835152218,2.006452,3139.8,3139.5,2.22958]
[1720835153041,2.2889,3140.1,3139.5,2.22958]
[1720835153209,2.0059809,3139.8,3139.5,2.22958]
[1720835153537,2.2889,3140.1,3139.5,2.22958]
[1720835153749,2.00598738,3139.8,3139.5,2.22958]
[1720835154127,2.00598738,3139.8,3139.6,0.22493641]
[1720835154329,2.00598738,3139.9,3139.6,0.22493641]
[1720835155026,2.00598738,3139.8,3139.6,0.22493641]
[1720835156421,2.00598129,3139.8,3139.6,0.22493641]
[1720835159469,2.00598129,3139.9,3139.6,0.22493641]
[1720835159654,2.00598129,3139.8,3139.6,1.03593641]
[1720835159954,4.6292115,3140.1,3139.6,1.03593641]
[1720835159955,2.00605259,3139.9,3139.6,1.03593641]
[1720835162453,2.00547021,3139.9,3139.6,1.03593641]
[1720835162927,2.00554436,3139.9,3139.6,1.03593641]
[1720835163556,0.811,3140.7,3140.0,2.22929]
[1720835163557,2.00554436,3140.1,3140.0,2.22929]
[1720835163764,1.67152786,3140.1,3140.0,3.04029]
[1720835163969,1.67152786,3140.1,3140.0,3.26449669]
[1720835165435,1.67131519,3140.1,3140.0,5.49374669]
[1720835165756,1.67133716,3140.1,3140.0,3.26445669]
[1720835172095,2.00560459,3140.3,3140.1,2.2292]
[1720835172471,7.43,3140.8,3140.2,0.22404283]
[1720835172669,2.3564,3140.9,3140.2,0.22404283]
[1720835172670,2.00583702,3140.3,3140.2,0.22404283]
[1720835173069,2.00580875,3140.3,3140.2,0.22404283]
[1720835173797,2.00580875,3140.4,3140.2,0.22404283]
[1720835175480,2.00586874,3140.4,3140.2,0.22404283]
[1720835175919,2.00589149,3140.4,3140.2,0.22404283]
[1720835176067,2.00589149,3140.4,3140.2,2.45319283]
[1720835177828,2.00589149,3140.3,3140.2,2.45319283]
[1720835178125,2.00589149,3140.4,3140.2,2.45319283]
[1720835178296,2.00589149,3140.3,3140.2,2.45319283]
[1720835178478,2.00589149,3140.4,3140.2,2.45319283]
[1720835179253,9.7864,3140.9,3140.2,2.45319283]
[1720835179411,2.00589175,3140.4,3140.2,2.45319283]
[1720835180935,2.00589175,3140.4,3140.3,2.22908]
[1720835181349,2.00589175,3140.4,3140.3,2.4529709]
[1720835181719,2.00589175,3140.4,3140.3,7.8539509]
[1720835182031,2.00589175,3140.5,3140.4,2.22901]
[1720835182233,2.00589175,3140.5,3140.4,2.45280332]
[1720835182433,2.00589175,3140.6,3140.5,2.22894]
[1720835182654,2.3564,3140.9,3140.5,2.45265141]
[1720835182813,2.33999051,3140.8,3140.5,2.45265141]
[1720835183206,2.3398755,3140.8,3140.5,2.45265141]
[1720835183939,2.00552844,3140.6,3140.5,2.45265141]
[1720835185773,2.00539719,3140.6,3140.5,2.45265141]
[1720835185923,2.3564,3140.9,3140.5,2.45265141]
[1720835186128,2.00536869,3140.6,3140.5,2.45265141]
[1720835186875,4.6959968,3140.9,3140.5,2.45265141]
[1720835186876,2.00536869,3140.7,3140.5,2.45265141]
[1720835187193,2.00536869,3140.7,3140.5,4.68155141]
[1720835188450,2.00536869,3140.7,3140.5,2.45261141]
[1720835189665,2.00536869,3140.7,3140.5,0.22371141]
[1720835189860,2.43986524,3140.7,3140.4,2.229]
[1720835190054,2.00536869,3140.7,3140.5,0.22366648]
[1720835190976,2.00536869,3140.7,3140.5,2.45260648]
[1720835192818,2.00466351,3140.7,3140.5,2.45260648]
[1720835192970,2.00459922,3140.7,3140.5,2.45260648]
[1720835193495,2.00457875,3140.7,3140.5,2.45260648]
[1720835194609,2.00457875,3140.8,3140.5,2.45260648]
[1720835195008,2.00457875,3140.7,3140.5,2.45260648]
[1720835195307,2.00457875,3140.8,3140.5,2.45260648]
[1720835195618,2.00457875,3140.7,3140.5,2.45260648]
[1720835196001,2.00457875,3140.7,3140.5,0.22366648]
[1720835196202,2.00445269,3140.7,3140.5,0.22366648]
[1720835196423,2.00445269,3140.6,3140.1,3.04018]
[1720835196623,1.33628969,3140.2,3140.1,3.04018]
[1720835199243,1.33628969,3140.2,3140.1,7.85180146]
[1720835201846,1.33686952,3140.2,3140.1,7.85184146]
[1720835205714,7.43,3141.0,3140.5,2.22894]
[1720835206059,2.00661134,3140.6,3140.5,2.22894]
[1720835206635,7.43,3141.0,3140.5,2.22894]
[1720835206834,2.00661784,3140.6,3140.5,2.22894]
[1720835207470,2.006589,3140.6,3140.5,2.22894]
[1720835207673,2.00655775,3140.6,3140.5,2.22894]
[1720835208674,2.00734863,3140.6,3140.5,2.22894]
[1720835209949,2.34098404,3140.8,3140.5,2.22894]
[1720835210335,2.0078408,3140.6,3140.5,2.22894]
[1720835210862,2.34098404,3140.9,3140.4,3.04001]
[1720835210863,2.34244045,3140.9,3140.6,2.22886]
[1720835214059,2.34244045,3140.9,3140.7,0.223487]
[1720835214275,7.43,3141.0,3140.7,0.223487]
[1720835214489,2.34320466,3140.9,3140.7,0.223487]
[1720835214849,2.34315042,3140.9,3140.7,0.223487]
[1720835217290,0.78762523,3140.9,3140.7,0.223487]
[1720835217462,2.34323488,3140.9,3140.7,0.223487]
[1720835217659,2.34323929,3140.9,3140.7,0.223487]
[1720835220567,2.34323929,3140.9,3140.8,2.22873]
[1720835220886,2.76525541,3141.1,3140.9,6.75897]
[1720835220887,2.34328418,3141.0,3140.9,6.75897]
[1720835221179,9.77328418,3141.5,3141.2,2.22844]
[1720835221366,7.43,3141.5,3141.4,0.811]
[1720835221768,9.43664806,3141.5,3141.4,0.811]
[1720835222490,7.43,3141.5,3141.4,3.0393]
[1720835223071,7.43,3141.5,3141.4,3.26214807]
[1720835223454,7.43,3141.5,3141.4,6.0579532]
[1720835223455,9.10073082,3141.5,3141.4,6.0579532]
[1720835223783,7.43,3141.5,3141.4,6.0579532]
[1720835224284,8.76596462,3141.5,3141.4,6.0579532]
[1720835224592,1.33596462,3141.5,3141.4,6.0579532]
[1720835226072,1.33596462,3141.6,3141.5,4.45646]
[1720835226279,1.33596462,3141.6,3141.5,6.27588792]
[1720835226687,1.33596462,3141.7,3141.6,4.45632]
[1720835226866,1.33596462,3141.8,3141.7,2.22809]
[1720835227068,1.33596462,3141.8,3141.7,4.67874076]
[1720835227264,7.76332736,3142.1,3141.7,4.67874076]
[1720835227265,1.33596462,3142.0,3141.8,2.22802]
[1720835227474,1.33596462,3142.0,3141.9,0.22239708]
[1720835227879,8.76596462,3142.1,3142.0,2.22788]
[1720835228074,1.66882022,3142.2,3142.1,2.2278]
[1720835228075,1.33596462,3142.2,3142.1,2.2278]
[1720835228280,1.33596462,3142.4,3142.2,2.22773]
[1720835228579,1.66882022,3142.5,3142.4,2.22759]
[1720835228757,1.66882022,3142.6,3142.4,2.22759]
[1720835228959,1.66882022,3142.6,3142.4,2.4494381]
[1720835229356,1.33280235,3142.5,3142.4,2.4494381]
[1720835230361,1.33280235,3142.6,3142.4,2.4494381]
[1720835232208,1.33280235,3142.7,3142.4,2.4494381]
[1720835233182,1.33280235,3142.8,3142.5,0.811]
[1720835233385,1.33280235,3143.0,3142.5,0.811]
[1720835233587,1.33280235,3143.0,3142.6,0.22164902]
[1720835234108,1.33280235,3143.0,3142.6,2.44904902]
[1720835234399,1.89654131,3143.1,3142.6,2.44904902]
[1720835234400,1.56605153,3143.1,3142.6,2.44904902]
[1720835234898,3.95173722,3143.2,3142.7,3.03838]
[1720835235213,2.61893487,3143.2,3142.8,0.22148543]
[1720835235572,2.61893487,3143.2,3142.7,3.03838]
[1720835235909,2.61893487,3143.2,3142.8,0.22144683]
[1720835236092,0.72850859,3143.2,3142.7,3.03838]
[1720835236294,0.72850859,3143.2,3142.8,0.22143535]
[1720835236482,0.72850859,3143.2,3142.7,3.03838]
[1720835236690,0.72850859,3143.2,3142.8,0.22143431]
[1720835236927,0.72850859,3143.2,3142.7,3.03838]
[1720835237095,0.72850859,3143.2,3142.8,0.22143431]
[1720835237276,0.72850859,3143.2,3142.7,3.03838]
[1720835237477,0.72850859,3143.2,3142.8,0.22143431]
[1720835237705,0.72850859,3143.2,3142.7,3.03838]
[1720835237891,0.33333487,3143.2,3142.8,0.22143431]
[1720835238091,0.33333487,3143.2,3142.7,3.03838]
[1720835238286,0.33333487,3143.2,3142.8,0.22143431]
[1720835238491,0.33333487,3143.2,3142.7,3.03838]
[1720835238719,0.33333487,3143.2,3142.8,0.22143431]
[1720835238929,0.33333487,3143.2,3142.7,3.03838]
[1720835239115,0.33333487,3143.2,3142.9,0.22135253]
[1720835239286,0.33333487,3143.2,3142.7,3.03838]
[1720835239490,0.33333487,3143.2,3142.8,0.22143431]
[1720835239724,0.33333487,3143.2,3142.7,3.03838]
[1720835240044,0.33333487,3143.2,3142.8,0.22143431]
[1720835240386,0.33333487,3143.2,3142.7,3.03838]
[1720835240783,0.33333487,3143.2,3142.8,0.22143431]
[1720835241101,0.33333487,3143.2,3142.7,3.03838]
[1720835241297,0.33333487,3143.2,3142.8,0.22143431]
[1720835241532,0.33333487,3143.2,3142.7,3.03838]
[1720835241682,0.33333487,3143.2,3142.8,0.22134351]
[1720835241882,0.33333487,3143.2,3142.7,3.03838]
[1720835242082,0.33333487,3143.2,3142.8,0.22134351]
[1720835242284,0.33333487,3143.2,3142.7,3.03838]
[1720835242496,0.33333487,3143.2,3142.8,0.22134351]
[1720835242823,0.33333487,3143.2,3142.7,3.03838]
[1720835243128,0.33333487,3143.2,3142.8,0.22134351]
[1720835243444,2.4294,3143.1,3142.0,7.61986]
[1720835243605,2.4294,3143.0,3142.1,2.22779]
[1720835243979,3.76220235,3143.0,3142.1,2.44245734]
[1720835244140,0.37622024,3142.9,3142.1,2.44245734]
[1720835244341,0.37622024,3142.9,3142.1,0.21466734]
[1720835244493,2.4294,3142.6,3142.1,0.21466734]
[1720835244691,2.4294,3142.6,3141.5,3.03919]
[1720835244925,3.76220235,3142.6,3141.6,0.21500312]
[1720835245139,1.33280235,3142.5,3141.5,3.03919]
[1720835245431,2.4294,3142.6,3141.9,0.811]
[1720835245607,2.95275788,3142.6,3141.9,0.811]
[1720835245806,2.4294,3142.6,3142.0,0.21467576]
[1720835249505,1.66617539,3142.8,3142.0,0.21467576]
[1720835249506,4.09557539,3142.8,3142.0,0.21467576]
[1720835249717,4.09557539,3142.8,3142.0,2.44254576]
[1720835250004,4.09170083,3142.8,3142.1,2.22778]
[1720835250247,3.3380591,3142.8,3142.1,2.22778]
[1720835250418,3.3380591,3142.8,3142.2,0.21451212]
[1720835251144,2.76277304,3142.8,3142.2,2.44222212]
[1720835251294,2.76277304,3142.8,3142.4,2.22758]
[1720835251295,0.33337304,3142.8,3142.4,2.22758]
[1720835251640,0.33337304,3142.8,3142.5,0.21426668]
[1720835255309,0.33337304,3142.8,3142.3,4.61965]
[1720835255513,0.33337304,3142.8,3142.4,0.89913852]
[1720835255727,0.33337304,3142.8,3142.4,0.21440252]
[1720835257216,2.4294,3142.7,3142.4,0.21440252]
[1720835257424,2.4294,3142.7,3142.2,2.22773]
[1720835257650,2.4294,3142.7,3142.5,0.21432072]
[1720835257851,2.4294,3142.7,3142.2,2.22773]
[1720835258051,2.4294,3142.7,3142.6,0.21423892]
[1720835258258,2.4294,3142.7,3142.2,2.22773]
[1720835258459,3.75832779,3142.7,3142.6,0.21423892]
[1720835258627,3.75832779,3142.7,3142.2,2.22773]
[1720835258831,3.75832779,3142.7,3142.6,0.21423892]
[1720835259038,3.75832779,3142.7,3142.0,2.22784]
[1720835259039,3.00484193,3142.7,3142.0,5.22784]
[1720835259245,4.09211851,3142.7,3142.6,0.21423892]
[1720835259558,4.09357229,3142.7,3142.6,0.21423892]
[1720835259775,4.09357229,3142.7,3142.0,6.03884]
[1720835260068,1.33134316,3142.6,3142.0,6.03884]
[1720835260385,1.33134316,3142.5,3142.0,8.26668]
[1720835261180,0.33333563,3142.4,3142.0,8.26668]
[1720835261479,1.66467879,3142.4,3142.0,6.03884]
[1720835262462,1.33134316,3142.3,3142.0,6.03884]
[1720835263375,1.33134316,3142.2,3142.0,3.0]
[1720835263576,1.33134316,3142.2,3141.9,6.203]
[1720835263760,1.33134316,3142.3,3141.9,7.046097]
[1720835263943,1.33134316,3142.2,3141.9,7.046097]
[1720835264147,1.33134316,3142.2,3141.9,3.811]
[1720835264357,1.33134316,3142.2,3140.5,1.5]
[1720835264358,1.33134316,3142.0,3141.4,4.58906]
[1720835264559,1.33446202,3141.6,3141.4,2.3608]
[1720835264730,1.33446202,3141.6,3141.5,0.811]
[1720835264927,1.66608618,3141.7,3141.5,0.811]
[1720835265346,1.66608618,3141.7,3140.8,2.22871]
[1720835265347,1.66608618,3141.6,3140.9,2.22859]
[1720835265534,1.66608618,3141.6,3140.8,2.3608]
[1720835265535,1.33535892,3141.1,3140.8,2.3608]
[1720835265752,1.33535892,3141.0,3140.9,0.811]
[1720835266162,1.33552264,3141.0,3140.9,0.811]
[1720835266363,1.33552264,3141.1,3140.9,0.811]
[1720835266547,1.33552264,3141.0,3140.9,0.811]
[1720835266975,1.33552264,3141.1,3140.9,3.03964]
[1720835267187,1.33552264,3141.1,3140.9,3.802558]
[1720835267477,1.33552264,3141.2,3141.0,0.20836497]
[1720835267648,1.33552264,3141.2,3141.1,0.811]
[1720835267832,1.66886948,3141.3,3141.1,0.811]
[1720835268038,1.66886948,3141.3,3141.1,1.01935451]
[1720835268248,1.33475943,3141.2,3141.1,1.01935451]
[1720835268872,1.33475943,3141.2,3141.1,0.20835451]
[1720835269125,1.33475943,3141.2,3141.1,0.811]
[1720835269275,1.33475943,3141.2,3141.1,1.01934634]
[1720835270022,1.33457991,3141.2,3141.1,1.01934634]
[1720835272090,1.33457991,3141.2,3141.1,0.20834634]
[1720835272293,1.33457991,3141.2,3140.9,3.0396]
[1720835272481,1.33457991,3141.2,3141.0,0.20842822]
[1720835272894,1.66822489,3141.1,3140.5,6.0399]
[1720835273201,1.33400924,3140.9,3140.6,0.20875579]
[1720835273625,1.33400924,3140.8,3140.6,0.20875579]
[1720835274305,1.33400924,3141.0,3140.7,0.811]
[1720835274505,1.66752072,3141.1,3140.8,0.208592]
[1720835274506,1.33400924,3141.1,3140.8,0.208592]
[1720835275013,1.33400924,3141.0,3140.8,0.208592]
[1720835275523,1.33400924,3141.1,3140.8,0.208592]
[1720835275711,1.33400924,3141.0,3140.8,0.208592]
[1720835277289,1.33400924,3141.1,3140.8,0.208592]
[1720835278601,1.33400924,3141.2,3140.8,0.208592]
[1720835279292,1.33400924,3141.1,3140.8,0.208592]
[1720835280298,1.33400924,3141.1,3140.5,6.0399]
[1720835280522,1.33400924,3141.1,3140.6,0.20889556]
[1720835280929,1.33400924,3141.2,3140.6,0.20889556]
[1720835281433,1.33400924,3141.1,3140.6,0.20889556]
[1720835281638,1.33400924,3140.8,3140.6,0.20889556]
[1720835281804,1.33400924,3140.8,3140.2,6.04012]
[1720835281994,1.33400924,3140.8,3140.7,0.20881366]
[1720835282192,1.33400924,3140.9,3140.2,6.04012]
[1720835282393,1.33400924,3140.8,3140.7,0.20881366]
[1720835282588,1.33400924,3140.9,3140.2,6.04012]
[1720835282897,1.33400924,3140.9,3140.2,3.811]
[1720835283236,1.33400924,3140.8,3140.3,0.20914129]
[1720835283402,3.77250924,3140.8,3140.3,0.20914129]
[1720835283728,3.77250924,3140.8,3140.4,0.20905937]
[1720835283729,2.4385,3140.8,3140.4,0.20905937]
[1720835283897,1.33400924,3140.9,3140.2,6.04012]
[1720835284228,1.33400924,3141.0,3140.4,0.811]
[1720835284414,1.33400924,3141.0,3140.6,0.811]
[1720835284614,3.77250924,3141.1,3140.6,0.811]
[1720835284823,3.77250924,3141.1,3140.7,0.20889326]
[1720835285729,3.77250924,3141.1,3140.4,1.65884109]
[1720835286028,3.77250924,3141.1,3140.5,0.20905707]
[1720835286231,2.4385,3141.1,3140.5,0.20905707]
[1720835286597,1.33400924,3141.2,3140.5,0.61875389]
[1720835286927,1.33400924,3141.2,3140.5,2.89905389]
[1720835287530,1.33400924,3141.1,3140.5,2.89905389]
[1720835287738,1.33400924,3141.1,3140.5,2.48935707]
[1720835289252,1.33165785,3141.0,3140.5,2.48935707]
[1720835289551,1.33165785,3141.1,3140.5,2.48935707]
[1720835289755,1.33165785,3141.0,3140.5,2.48935707]
[1720835291143,1.33165785,3141.1,3140.5,2.48935707]
[1720835292662,1.3313877,3141.1,3140.5,2.48935707]
[1720835293163,1.3313877,3141.1,3140.5,2.96118778]
[1720835293919,1.3313877,3141.2,3140.5,2.96118778]
[1720835294131,1.3313877,3141.3,3140.7,2.2803]
[1720835294462,1.3313877,3141.3,3140.8,0.20881138]
[1720835294669,1.3313877,3141.4,3140.8,0.20881138]
[1720835295393,1.3313877,3141.3,3140.8,0.20881138]
[1720835296151,1.3313877,3141.4,3140.8,0.20881138]
[1720835296350,1.3313877,3141.3,3140.8,0.20881138]
[1720835297784,1.3313877,3141.2,3140.8,0.20881138]
[1720835297936,1.3313877,3141.3,3140.8,0.20881138]
[1720835298366,1.3313877,3141.2,3140.8,0.20881138]
[1720835300384,1.3313877,3141.1,3140.8,0.20881138]
[1720835300567,1.3313877,3141.2,3140.8,0.20881138]
[1720835301281,1.3313877,3141.1,3140.8,0.20881138]
[1720835301880,1.3313877,3141.2,3140.9,2.66321114]
[1720835302189,1.3313877,3141.4,3141.1,2.4143]
[1720835302339,1.3313877,3141.5,3141.2,0.811]
[1720835302539,1.3313877,3141.5,3141.3,0.20837443]
[1720835302739,1.3313877,3141.5,3141.2,1.44346674]
[1720835302985,1.3313877,3141.5,3141.3,0.20837443]
[1720835303280,1.3313877,3141.4,3141.3,0.20837443]
[1720835303483,1.3313877,3141.4,3141.2,3.67190674]
[1720835303679,1.3313877,3141.5,3141.2,3.67190674]
[1720835303882,1.3313877,3141.5,3141.3,0.20837443]
[1720835304181,1.3313877,3141.5,3141.2,3.67190674]
[1720835304337,1.3313877,3141.4,3141.2,3.67190674]
[1720835305346,1.3313877,3141.4,3141.3,0.47183071]
[1720835305682,1.3313877,3141.5,3141.3,0.47183071]
[1720835305988,1.3313877,3141.4,3141.3,0.47183071]
[1720835306284,1.66634154,3141.4,3141.2,3.03944]
[1720835306487,1.33464272,3141.3,3141.2,3.03944]
[1720835306791,1.33464293,3141.3,3141.2,3.03944]
[1720835308347,1.66830366,3141.4,3141.2,3.03944]
[1720835308892,1.66939221,3141.4,3141.2,3.03944]
[1720835309397,0.33332687,3142.1,3141.2,3.03944]
[1720835309550,1.67005226,3141.3,3141.2,3.03944]
[1720835310281,2.00406271,3141.5,3141.2,3.03944]
[1720835312264,2.00406271,3141.5,3141.2,0.811]
[1720835312487,2.00406271,3141.4,3141.0,0.811]
[1720835312686,2.00406271,3141.3,3140.9,3.0]
[1720835312904,2.00519255,3141.3,3141.1,0.20847591]
[1720835313050,2.00519255,3141.3,3141.0,0.20855778]
[1720835313249,2.00519255,3141.3,3141.2,0.20839403]
[1720835313651,2.00519255,3141.3,3140.9,5.22865]
[1720835313900,1.67101482,3141.0,3140.9,3.0]
[1720835314053,1.67101482,3141.0,3140.9,5.22866]
[1720835314283,1.67101482,3141.1,3140.9,5.22866]
[1720835314610,1.67101482,3141.1,3141.0,0.811]
[1720835316216,2.3548,3141.8,3141.0,0.811]
[1720835316380,1.6709578,3141.1,3141.0,0.811]
[1720835316782,1.67095747,3141.1,3141.0,0.811]
[1720835318414,1.67095747,3141.1,3140.9,5.22866]
[1720835319241,1.67095747,3141.1,3141.0,0.20856288]